bitfinex-derivatives/quotes_BTCF0:USTF0_20210708
["timestamp","ask_amount","ask_price","bid_price","bid_amount"]
[1625729549820,5.27168176,32821.0,32820.0,0.0035875]
[1625729549970,5.27168176,32821.0,32815.0,0.00358792]
[1625729550123,5.27168176,32821.0,32816.0,0.01236326]
[1625729550572,5.27168176,32821.0,32817.0,0.00358807]
[1625729550875,1.21028176,32821.0,32817.0,0.00358807]
[1625729551024,0.96230176,32821.0,32820.0,0.1]
[1625729551181,0.72172632,32821.0,32820.0,0.34057544]
[1625729551329,0.72172632,32821.0,32820.0,0.3441633]
[1625729551474,0.72172632,32821.0,32820.0,0.7966013]
[1625729551773,0.72172632,32821.0,32820.0,0.8281013]
[1625729552074,0.72172632,32821.0,32820.0,0.58752586]
[1625729552826,0.72172632,32821.0,32820.0,0.13508786]
[1625729553875,0.72172632,32821.0,32820.0,0.10358786]
[1625729554025,0.72172632,32821.0,32808.0,0.15957716]
[1625729554452,0.72172632,32821.0,32809.0,0.01234235]
[1625729554474,0.72172632,32821.0,32809.0,0.01593072]
[1625729554625,0.72172632,32821.0,32810.0,0.01233967]
[1625729554777,0.72172632,32821.0,32810.0,0.80281582]
[1625729554923,0.72172632,32821.0,32811.0,0.01233755]
[1625729555074,0.72172632,32821.0,32811.0,0.0159256]
[1625729555224,0.24057544,32814.0,32813.0,0.24057544]
[1625729555525,0.24057544,32814.0,32813.0,0.25450139]
[1625729555676,0.24057544,32814.0,32813.0,0.26683178]
[1625729556277,0.24057544,32814.0,32813.0,0.25450139]
[1625729556581,0.24057544,32814.0,32813.0,0.28600139]
[1625729557181,0.48115088,32814.0,32813.0,0.28600139]
[1625729559505,0.42095088,32814.0,32813.0,0.28600139]
[1625729562516,0.42095088,32814.0,32813.0,0.04542595]
[1625729563258,0.42095088,32814.0,32813.0,0.28600139]
[1625729563859,0.42095088,32814.0,32813.0,0.04542595]
[1625729564477,0.59590088,32814.0,32813.0,0.04542595]
[1625729564659,0.59590088,32814.0,32813.0,0.03508795]
[1625729566262,0.35915088,32814.0,32813.0,0.03508795]
[1625729566410,0.36015088,32814.0,32813.0,0.03508795]
[1625729567234,0.36015088,32814.0,32813.0,0.27566339]
[1625729569524,0.36015088,32814.0,32813.0,0.73569139]
[1625729569789,0.35515088,32814.0,32813.0,0.98993139]
[1625729570691,0.35515088,32814.0,32813.0,0.73569139]
[1625729574820,0.35515088,32814.0,32813.0,0.74466239]
[1625729576101,0.35515088,32814.0,32813.0,0.83476239]
[1625729576699,0.35515088,32814.0,32813.0,0.74466239]
[1625729576848,0.48115088,32821.0,32813.0,0.74466239]
[1625729577065,0.02330976,32838.0,32813.0,0.76260407]
[1625729577191,0.1522359,32844.0,32814.0,0.57852741]
[1625729577342,0.1522359,32844.0,32827.0,0.18546745]
[1625729577468,0.24057544,32842.0,32839.0,0.48115088]
[1625729577617,0.24057544,32842.0,32839.0,0.59181544]
[1625729577747,0.24057544,32842.0,32840.0,0.00358755]
[1625729578499,0.24057544,32842.0,32841.0,0.1]
[1625729578876,0.24057544,32842.0,32841.0,0.16058717]
[1625729579337,0.24057544,32842.0,32841.0,0.13508717]
[1625729579850,0.1522359,32844.0,32841.0,0.19208717]
[1625729580300,0.24057544,32845.0,32842.0,0.00358653]
[1625729580753,0.24057544,32845.0,32844.0,0.1]
[1625729580900,0.24057544,32849.0,32844.0,0.1]
[1625729580901,0.24057544,32852.0,32844.0,0.157]
[1625729581061,0.22967544,32852.0,32844.0,0.35501824]
[1625729581201,0.993,32859.0,32844.0,0.81062424]
[1625729581351,0.993,32859.0,32858.0,0.24057544]
[1625729581502,0.24057544,32861.0,32858.0,0.52518544]
[1625729581652,0.24057544,32861.0,32858.0,0.62518544]
[1625729581953,0.24057544,32861.0,32859.0,0.00358577]
[1625729582477,0.24057544,32861.0,32860.0,0.1]
[1625729582933,0.24057544,32861.0,32860.0,0.10358577]
[1625729583381,0.48115088,32861.0,32860.0,0.10358577]
[1625729585553,0.48115088,32861.0,32860.0,0.1]
[1625729592612,0.48115088,32861.0,32860.0,0.157]
[1625729593063,0.15412497,32868.0,32860.0,0.157]
[1625729593211,0.15412497,32868.0,32860.0,0.1885]
[1625729593363,0.49080257,32873.0,32860.0,0.1885]
[1625729593364,0.003,32873.0,32867.0,0.72172632]
[1625729593512,0.003,32873.0,32868.0,0.057]
[1625729594113,0.003,32873.0,32872.0,0.1]
[1625729595012,0.003,32873.0,32868.0,0.0315]
[1625729595389,0.003,32873.0,32872.0,0.34057544]
[1625729596365,0.001,32875.0,32872.0,0.34057544]
[1625729596740,0.0908,32874.0,32872.0,0.24057544]
[1625729596890,0.33492,32874.0,32872.0,0.24057544]
[1625729597090,0.33492,32874.0,32868.0,0.001]
[1625729597267,0.66016128,32874.0,32868.0,0.001]
[1625729597420,0.48115088,32869.0,32868.0,0.001]
[1625729598622,0.57265088,32869.0,32868.0,0.101]
[1625729599070,0.48115088,32869.0,32868.0,0.101]
[1625729603954,0.82637088,32869.0,32868.0,0.101]
[1625729606806,0.48115088,32869.0,32868.0,0.101]
[1625729607860,0.48115088,32869.0,32868.0,0.10458556]
[1625729608459,0.48115088,32869.0,32868.0,0.10358556]
[1625729609511,0.48115088,32869.0,32868.0,0.45229556]
[1625729609662,0.24057544,32869.0,32868.0,0.45229556]
[1625729609962,0.24057544,32869.0,32868.0,0.54079556]
[1625729610713,0.24057544,32869.0,32868.0,0.48379556]
[1625729611613,0.24057544,32869.0,32868.0,0.54079556]
[1625729611913,0.001,32871.0,32868.0,0.54079556]
[1625729612363,0.001,32871.0,32869.0,0.00358486]
[1625729612962,0.001,32871.0,32870.0,0.1]
[1625729613414,0.001,32871.0,32870.0,0.10358492]
[1625729613565,0.24157544,32871.0,32870.0,0.10358492]
[1625729613864,0.24157544,32871.0,32870.0,0.16058492]
[1625729614014,0.001,32871.0,32870.0,0.16058492]
[1625729614388,0.001,32871.0,32870.0,0.19208492]
[1625729615514,0.001,32871.0,32870.0,0.43266036]
[1625729617240,0.20623588,32880.0,32870.0,0.43266036]
[1625729617539,0.20623588,32880.0,32879.0,0.48115088]
[1625729617989,0.20623588,32880.0,32879.0,0.58115088]
[1625729618441,0.20623588,32880.0,32879.0,0.61265088]
[1625729619341,0.20623588,32880.0,32879.0,0.66965088]
[1625729620392,0.17172694,32881.0,32879.0,0.66965088]
[1625729620992,0.17172694,32881.0,32879.0,0.56965088]
[1625729621292,0.17172694,32881.0,32880.0,0.1]
[1625729621441,0.17172694,32881.0,32880.0,0.157]
[1625729621891,0.17172694,32881.0,32880.0,0.1885]
[1625729622493,0.17172694,32881.0,32880.0,0.19208395]
[1625729623018,0.17172694,32881.0,32880.0,0.51423395]
[1625729623544,0.17172694,32881.0,32880.0,0.75480939]
[1625729624144,0.003,32883.0,32880.0,0.75480939]
[1625729624595,0.003,32883.0,32880.0,0.65480939]
[1625729624745,0.003,32883.0,32880.0,0.65122544]
[1625729625047,0.003,32883.0,32882.0,0.1]
[1625729625196,0.003,32883.0,32882.0,0.157]
[1625729625647,0.003,32883.0,32882.0,0.1885]
[1625729626322,0.001,32885.0,32882.0,0.1885]
[1625729626472,0.001,32885.0,32882.0,0.46664]
[1625729626624,0.001,32885.0,32882.0,0.36664]
[1625729626998,0.001,32885.0,32884.0,0.1]
[1625729627148,0.001,32885.0,32884.0,0.157]
[1625729627599,0.001,32885.0,32884.0,0.42907544]
[1625729629477,0.001,32885.0,32884.0,0.37207544]
[1625729629626,0.001,32885.0,32884.0,0.66965088]
[1625729630904,0.001,32885.0,32884.0,0.1]
[1625729631223,0.001,32885.0,32880.0,0.24057544]
[1625729631354,0.27212,32885.0,32880.0,0.24057544]
[1625729631655,0.48115088,32881.0,32880.0,0.24057544]
[1625729631955,0.48115088,32881.0,32876.0,0.24157544]
[1625729632105,0.48115088,32881.0,32876.0,0.001]
[1625729633616,0.24057544,32877.0,32876.0,0.001]
[1625729634133,0.24057544,32877.0,32876.0,0.101]
[1625729634283,0.24057544,32877.0,32876.0,0.158]
[1625729635266,0.24057544,32877.0,32876.0,0.157]
[1625729636010,0.24057544,32877.0,32876.0,0.1885]
[1625729637218,0.001,32879.0,32876.0,0.1885]
[1625729637663,0.001,32879.0,32878.0,0.24057544]
[1625729637813,0.001,32879.0,32878.0,0.29757544]
[1625729638113,0.001,32879.0,32878.0,0.39757544]
[1625729640442,0.001,32879.0,32878.0,0.34057544]
[1625729640745,0.49505389,32879.0,32878.0,0.34057544]
[1625729641044,0.49505389,32879.0,32878.0,0.34416027]
[1625729641195,0.16573949,32879.0,32878.0,0.10358483]
[1625729641346,1.1527279,32879.0,32878.0,0.10358483]
[1625729641498,1.1527279,32879.0,32878.0,0.0012]
[1625729641647,2.38003762,32879.0,32878.0,0.0012]
[1625729641796,2.39685931,32879.0,32878.0,0.0012]
[1625729641948,4.86194636,32879.0,32878.0,0.0012]
[1625729642097,4.86194636,32879.0,32872.0,0.001]
[1625729642247,5.11262636,32879.0,32872.0,0.001]
[1625729642397,0.16066473,32873.0,32872.0,0.001]
[1625729642547,2.29617469,32873.0,32872.0,0.001]
[1625729642699,3.44554149,32873.0,32857.0,0.24457544]
[1625729642850,3.96236538,32873.0,32857.0,0.004]
[1625729643001,0.49212706,32864.0,32857.0,0.004]
[1625729643150,0.49178225,32863.0,32858.0,0.00358622]
[1625729643487,0.16395782,32862.0,32849.0,0.92404963]
[1625729643668,0.5,32861.0,32849.0,0.92404963]
[1625729643750,0.5,32861.0,32837.0,1.78072412]
[1625729643751,0.96230176,32850.0,32837.0,1.78072412]
[1625729643903,0.16079011,32847.0,32837.0,0.057]
[1625729644200,0.16079011,32847.0,32838.0,0.01255468]
[1625729644650,0.16079011,32847.0,32838.0,0.00358705]
[1625729645702,0.72172632,32839.0,32838.0,0.00358705]
[1625729646609,1.04755632,32839.0,32838.0,0.00358705]
[1625729648706,1.04755632,32839.0,32837.0,0.32907544]
[1625729649081,0.72172632,32839.0,32837.0,0.32907544]
[1625729649533,0.72172632,32839.0,32838.0,0.1]
[1625729649682,0.72172632,32839.0,32838.0,0.157]
[1625729651332,0.72172632,32839.0,32838.0,0.1]
[1625729651631,0.72172632,32839.0,32838.0,0.157]
[1625729652082,0.72172632,32839.0,32838.0,0.43408]
[1625729653364,0.72172632,32839.0,32838.0,0.46558]
[1625729653737,0.48115088,32839.0,32838.0,0.70615544]
[1625729654638,0.16080656,32844.0,32838.0,0.70615544]
[1625729655239,0.16080656,32844.0,32838.0,0.60615544]
[1625729655690,0.16079011,32847.0,32843.0,0.34057544]
[1625729655840,0.16079011,32847.0,32844.0,0.057]
[1625729656440,0.001,32845.0,32844.0,0.057]
[1625729657040,0.001,32845.0,32844.0,0.157]
[1625729657417,0.001,32845.0,32844.0,0.642357]
[1625729657718,0.16079011,32847.0,32844.0,0.88293244]
[1625729658019,1.23957544,32860.0,32844.0,0.78293244]
[1625729658168,0.24457544,32860.0,32844.0,0.78293244]
[1625729658318,0.12957544,32860.0,32844.0,0.78293244]
[1625729658468,0.10757544,32860.0,32859.0,0.1]
[1625729658618,0.10757544,32860.0,32859.0,0.49849]
[1625729659594,0.10757544,32860.0,32859.0,0.52999]
[1625729659743,0.10757544,32860.0,32859.0,0.77056544]
[1625729665597,0.10757544,32860.0,32859.0,0.71356544]
[1625729665753,0.10757544,32860.0,32859.0,0.37207544]
[1625729666050,0.10757544,32860.0,32859.0,0.1]
[1625729666576,0.10757544,32860.0,32855.0,0.24157544]
[1625729666723,5.4276,32858.0,32855.0,0.24157544]
[1625729667176,5.4276,32858.0,32857.0,0.1]
[1625729667775,5.66817544,32858.0,32855.0,0.24157544]
[1625729667926,5.66817544,32858.0,32855.0,0.001]
[1625729669882,0.24057544,32856.0,32855.0,0.001]
[1625729670856,0.24057544,32856.0,32855.0,0.00458683]
[1625729671081,0.24057544,32856.0,32855.0,0.001]
[1625729671455,0.24057544,32856.0,32855.0,0.00458678]
[1625729671755,0.24057544,32856.0,32855.0,0.101]
[1625729671911,0.24057544,32856.0,32855.0,0.10458667]
[1625729673259,0.24057544,32856.0,32855.0,0.16158667]
[1625729673783,0.24057544,32856.0,32855.0,0.10458667]
[1625729674234,0.24057544,32856.0,32855.0,0.16158667]
[1625729674685,0.24057544,32856.0,32855.0,0.10458667]
[1625729676035,0.24057544,32856.0,32855.0,0.16158667]
[1625729676485,0.24057544,32856.0,32855.0,0.19308667]
[1625729677238,0.24057544,32856.0,32855.0,0.19208667]
[1625729677687,5.66917544,32858.0,32855.0,0.19208667]
[1625729677688,0.24157544,32858.0,32855.0,0.19208667]
[1625729677848,0.001,32858.0,32855.0,0.19208667]
[1625729677988,0.001,32858.0,32857.0,0.72172632]
[1625729678138,0.001,32858.0,32857.0,1.13086632]
[1625729678587,0.001,32858.0,32857.0,1.16595252]
[1625729678739,0.001,32858.0,32857.0,1.26595252]
[1625729683545,0.001,32858.0,32857.0,0.91381252]
[1625729685725,0.001,32858.0,32857.0,0.74173575]
[1625729686326,0.24057544,32859.0,32857.0,0.74173575]
[1625729686701,0.24057544,32859.0,32858.0,0.00358635]
[1625729687152,0.24057544,32859.0,32858.0,0.10358635]
[1625729687302,0.24057544,32859.0,32858.0,0.19208635]
[1625729690757,0.73280618,32868.0,32858.0,0.19208635]
[1625729690908,0.49234693,32869.0,32858.0,0.85988635]
[1625729691078,0.003,32870.0,32858.0,0.85988635]
[1625729691237,0.003,32870.0,32859.0,0.45922944]
[1625729691361,0.003,32870.0,32865.0,1.42292153]
[1625729691508,0.004,32875.0,32869.0,0.1]
[1625729691660,0.004,32875.0,32870.0,0.057]
[1625729691809,0.004,32875.0,32870.0,0.06058503]
[1625729691960,0.005,32880.0,32874.0,0.96230176]
[1625729692111,0.005,32880.0,32875.0,0.057]
[1625729692261,0.005,32880.0,32879.0,0.1]
[1625729692416,0.005,32881.0,32879.0,0.1]
[1625729692863,0.005,32881.0,32875.0,0.057]
[1625729693164,0.005,32881.0,32880.0,0.1]
[1625729693313,0.4991953,32881.0,32880.0,0.1]
[1625729693465,1.15695707,32881.0,32880.0,0.1]
[1625729693615,1.15695707,32881.0,32874.0,0.96230176]
[1625729693766,2.48678648,32881.0,32874.0,0.96230176]
[1625729693915,0.49366582,32878.0,32874.0,0.96230176]
[1625729694216,0.4934702,32877.0,32874.0,0.96230176]
[1625729694966,0.16454486,32877.0,32876.0,0.1]
[1625729695118,0.49343942,32878.0,32876.0,0.1]
[1625729695266,0.49343942,32878.0,32876.0,0.43267]
[1625729695418,0.49358937,32879.0,32877.0,0.057]
[1625729695566,0.98668548,32881.0,32877.0,0.057]
[1625729695567,0.16471828,32881.0,32877.0,0.057]
[1625729695866,0.82309775,32882.0,32878.0,0.1]
[1625729695867,0.49394628,32882.0,32878.0,0.1]
[1625729696045,0.16467427,32882.0,32881.0,0.48115088]
[1625729696342,0.49404675,32883.0,32881.0,0.48115088]
[1625729696469,0.49404675,32883.0,32882.0,0.057]
[1625729696776,0.16587569,32884.0,32882.0,0.057]
[1625729697067,0.001,32884.0,32882.0,0.057]
[1625729697218,0.49542628,32884.0,32882.0,0.057]
[1625729697366,0.49542628,32884.0,32883.0,0.1]
[1625729697517,0.001,32884.0,32883.0,0.48264]
[1625729697836,0.001,32884.0,32883.0,0.42564]
[1625729698120,0.16590896,32884.0,32883.0,0.75471544]
[1625729698570,0.001,32884.0,32883.0,0.75471544]
[1625729703980,0.001,32884.0,32883.0,0.37207544]
[1625729704283,0.16654412,32884.0,32883.0,0.37207544]
[1625729704432,0.9935713,32884.0,32883.0,0.27207544]
[1625729704807,0.16654412,32884.0,32883.0,0.27207544]
[1625729704957,0.16654412,32884.0,32883.0,0.37207544]
[1625729705256,0.001,32884.0,32883.0,0.37207544]
[1625729705706,0.001,32884.0,32883.0,0.42907544]
[1625729706383,0.16645554,32884.0,32883.0,0.37207544]
[1625729706682,0.001,32884.0,32883.0,0.37207544]
[1625729707133,0.001,32884.0,32883.0,0.42907544]
[1625729707735,0.27504,32884.0,32874.0,0.24057544]
[1625729707899,0.27504,32884.0,32871.0,0.001]
[1625729707900,0.057,32883.0,32871.0,0.001]
[1625729708034,0.72172632,32872.0,32871.0,0.001]
[1625729708185,0.93464632,32872.0,32871.0,0.001]
[1625729708334,0.99164632,32872.0,32871.0,0.001]
[1625729709385,0.99164632,32872.0,32870.0,0.003]
[1625729710073,0.24057544,32871.0,32870.0,0.003]
[1625729710210,0.29757544,32871.0,32870.0,0.003]
[1625729710513,0.29757544,32871.0,32870.0,0.103]
[1625729717791,0.29757544,32871.0,32870.0,0.10658545]
[1625729718317,0.29757544,32871.0,32870.0,0.10358545]
[1625729719367,0.29757544,32871.0,32870.0,0.1]
[1625729719668,0.29757544,32871.0,32870.0,0.10358556]
[1625729724396,0.58577544,32871.0,32870.0,0.10358556]
[1625729724547,0.58577544,32871.0,32867.0,0.001]
[1625729724998,0.49506069,32869.0,32867.0,0.001]
[1625729725151,0.22200692,32868.0,32856.0,1.24585169]
[1625729725306,1.05185592,32868.0,32856.0,1.24585169]
[1625729725496,1.05185592,32868.0,32852.0,0.004]
[1625729725497,0.49439125,32864.0,32852.0,0.004]
[1625729725637,0.057,32863.0,32857.0,0.00358657]
[1625729725809,0.55123636,32863.0,32857.0,0.00358657]
[1625729725938,0.16458907,32859.0,32853.0,0.00358685]
[1625729726050,0.057,32858.0,32853.0,0.00358685]
[1625729726200,0.96230176,32854.0,32852.0,0.004]
[1625729726350,0.057,32853.0,32852.0,0.004]
[1625729727249,0.057,32853.0,32841.0,1.42388069]
[1625729727406,0.057,32853.0,32851.0,0.004]
[1625729727852,4.4659,32852.0,32851.0,0.004]
[1625729728153,4.5229,32852.0,32851.0,0.004]
[1625729731458,4.68366731,32852.0,32851.0,0.004]
[1625729732662,4.62666731,32852.0,32851.0,0.004]
[1625729732809,4.62666731,32852.0,32851.0,0.104]
[1625729734160,4.68366731,32852.0,32851.0,0.104]
[1625729735213,4.68366731,32852.0,32851.0,0.004]
[1625729736338,4.68366731,32852.0,32847.0,0.001]
[1625729737465,4.68366731,32852.0,32851.0,0.1]
[1625729737615,4.62666731,32852.0,32851.0,0.1]
[1625729738968,4.62666731,32852.0,32847.0,0.001]
[1625729739118,0.057,32851.0,32847.0,0.001]
[1625729740317,0.48115088,32848.0,32847.0,0.001]
[1625729741108,0.98115088,32848.0,32847.0,0.001]
[1625729741369,0.48115088,32848.0,32847.0,0.001]
[1625729744073,0.48115088,32848.0,32833.0,0.21465544]
[1625729744222,0.057,32847.0,32833.0,0.21465544]
[1625729744374,0.48115088,32834.0,32833.0,0.21465544]
[1625729744828,0.48115088,32834.0,32833.0,0.21824359]
[1625729745125,0.48115088,32834.0,32833.0,0.31824359]
[1625729756238,0.48115088,32834.0,32833.0,0.34974359]
[1625729761574,0.16184443,32836.0,32833.0,0.34974359]
[1625729762021,0.16184443,32836.0,32834.0,0.00358794]
[1625729762473,0.16184443,32836.0,32835.0,0.34057544]
[1625729762922,0.16184443,32836.0,32835.0,0.3441633]
[1625729763225,0.16184443,32836.0,32835.0,0.3756633]
[1625729766377,0.16084443,32836.0,32835.0,0.3756633]
[1625729767356,0.16084443,32836.0,32835.0,0.7100033]
[1625729768181,0.16084443,32836.0,32835.0,0.71897248]
[1625729768330,0.16084443,32836.0,32835.0,0.7100033]
[1625729768935,0.16084443,32836.0,32835.0,0.71897247]
[1625729770737,0.16084443,32836.0,32835.0,2.14031169]
[1625729775841,0.002,32843.0,32835.0,2.14031169]
[1625729775994,0.002,32843.0,32835.0,3.74104718]
[1625729776140,0.002,32843.0,32835.0,4.19942518]
[1625729776289,0.002,32843.0,32836.0,0.0125552]
[1625729776440,0.002,32843.0,32841.0,1.42266465]
[1625729776590,0.002,32843.0,32842.0,0.48115088]
[1625729776740,0.002,32843.0,32842.0,2.25393076]
[1625729776892,0.002,32843.0,32842.0,2.36648569]
[1625729777119,0.002,32843.0,32842.0,2.35751788]
[1625729777493,0.002,32843.0,32842.0,2.38901788]
[1625729778326,0.16076731,32852.0,32842.0,2.38901788]
[1625729778498,0.24057544,32843.0,32842.0,2.38901788]
[1625729778771,0.24057544,32843.0,32842.0,2.28901788]
[1625729779145,0.24057544,32843.0,32842.0,2.38901788]
[1625729779296,0.16076731,32852.0,32842.0,2.38901788]
[1625729779598,0.16076731,32852.0,32843.0,0.00358735]
[1625729780048,0.16076731,32852.0,32847.0,0.1]
[1625729780349,0.16076731,32852.0,32847.0,0.10358735]
[1625729780498,0.16076731,32852.0,32847.0,0.34416279]
[1625729780872,0.16076731,32852.0,32847.0,0.37566279]
[1625729781023,0.21776731,32852.0,32847.0,0.37566279]
[1625729783048,0.3005052,32852.0,32847.0,0.37566279]
[1625729783199,0.46583506,32852.0,32847.0,0.37566279]
[1625729784629,0.30057544,32848.0,32847.0,0.37566279]
[1625729784810,0.30057544,32848.0,32847.0,0.13508735]
[1625729784957,0.30057544,32848.0,32847.0,0.10358735]
[1625729785078,2.44820251,32848.0,32847.0,0.00358735]
[1625729785229,2.72651251,32848.0,32847.0,0.00358735]
[1625729785529,1.73536354,32848.0,32847.0,0.1]
[1625729785827,1.40529848,32848.0,32847.0,0.10358779]
[1625729786430,0.79680811,32848.0,32847.0,0.10358779]
[1625729786579,1.36796172,32848.0,32847.0,0.10358779]
[1625729786879,0.78954216,32848.0,32847.0,0.10358779]
[1625729787182,0.6240031,32848.0,32847.0,0.10358779]
[1625729787330,0.6210031,32848.0,32847.0,0.10358779]
[1625729788229,0.29757544,32848.0,32847.0,0.10358779]
[1625729788380,0.29757544,32848.0,32847.0,0.13508779]
[1625729788530,0.29757544,32848.0,32847.0,0.37566323]
[1625729788830,0.24057544,32848.0,32847.0,0.37566323]
[1625729788983,0.73119397,32852.0,32847.0,1.80580565]
[1625729789151,0.70019397,32852.0,32847.0,1.80580565]
[1625729789283,0.248592,32853.0,32849.0,1.43003274]
[1625729789440,0.248592,32853.0,32849.0,1.71054274]
[1625729789582,0.248592,32853.0,32850.0,0.0035872]
[1625729789732,0.08291917,32853.0,32852.0,0.1]
[1625729789882,0.48912975,32854.0,32852.0,0.1]
[1625729790107,0.23747836,32854.0,32852.0,0.1]
[1625729790257,0.23747836,32854.0,32853.0,0.00358711]
[1625729790557,0.23747836,32854.0,32853.0,0.24416255]
[1625729790708,0.15457544,32854.0,32853.0,0.34057544]
[1625729791008,0.15457544,32854.0,32853.0,0.37566257]
[1625729791178,0.23745524,32854.0,32853.0,0.37566257]
[1625729791458,0.40302935,32854.0,32853.0,0.37566257]
[1625729791611,0.73398403,32854.0,32853.0,0.37566257]
[1625729791910,0.40302935,32854.0,32853.0,0.37566257]
[1625729792361,0.65108782,32854.0,32853.0,0.37566257]
[1625729793035,0.70808782,32854.0,32853.0,0.37566257]
[1625729793338,0.70828626,32854.0,32853.0,0.37566257]
[1625729793938,1.3705708,32854.0,32853.0,0.37566257]
[1625729800472,0.21157544,32854.0,32853.0,0.37566257]
[1625729800774,1.37096245,32854.0,32853.0,0.37566257]
[1625729802649,1.04014879,32854.0,32853.0,0.37566257]
[1625729802950,0.70847924,32854.0,32853.0,0.37566257]
[1625729803249,1.37154567,32854.0,32853.0,0.37566257]
[1625729806103,1.37154567,32854.0,32853.0,0.13508713]
[1625729806254,2.36578277,32854.0,32853.0,0.13508713]
[1625729806703,2.36578277,32854.0,32853.0,0.00358713]
[1625729806854,3.52504964,32854.0,32853.0,0.00358713]
[1625729807004,3.54247229,32854.0,32851.0,0.00358756]
[1625729807306,1.37084231,32854.0,32853.0,0.1]
[1625729807534,3.52360196,32854.0,32853.0,0.1]
[1625729807699,3.52360196,32854.0,32849.0,0.001]
[1625729807851,4.86491271,32854.0,32849.0,0.001]
[1625729808058,4.63002032,32850.0,32849.0,0.001]
[1625729808208,4.95233032,32850.0,32849.0,0.001]
[1625729808358,4.96976628,32850.0,32849.0,0.00458802]
[1625729808807,5.45091716,32850.0,32849.0,0.00458802]
[1625729809408,5.45091716,32850.0,32849.0,0.001]
[1625729810609,5.95091716,32850.0,32849.0,0.001]
[1625729810911,7.43736146,32850.0,32849.0,0.001]
[1625729811359,5.45091716,32850.0,32849.0,0.001]
[1625729811660,5.95091716,32850.0,32849.0,0.001]
[1625729811810,6.93740659,32850.0,32849.0,0.001]
[1625729811962,6.91997063,32850.0,32849.0,0.001]
[1625729812112,6.93739159,32850.0,32849.0,0.001]
[1625729812561,6.93739159,32850.0,32839.0,0.003]
[1625729812562,6.93739159,32850.0,32836.0,1.43043149]
[1625729812713,0.72172632,32837.0,32836.0,1.43043149]
[1625729812862,0.72172632,32837.0,32832.0,1.43063347]
[1625729812863,1.30321663,32837.0,32832.0,1.43063347]
[1625729813012,1.63324044,32837.0,32832.0,1.25055865]
[1625729813313,0.49453046,32836.0,32835.0,0.00358882]
[1625729813462,0.49453046,32836.0,32833.0,0.00358878]
[1625729813762,0.24745552,32836.0,32830.0,0.00358878]
[1625729813915,0.057,32835.0,32830.0,0.00358878]
[1625729814062,0.057,32835.0,32834.0,0.00358881]
[1625729814364,0.63397634,32835.0,32833.0,0.004]
[1625729814513,0.63397634,32835.0,32834.0,0.00358888]
[1625729814667,0.30439322,32835.0,32834.0,0.00358888]
[1625729814814,0.54496866,32835.0,32833.0,0.004]
[1625729815114,0.87430281,32835.0,32833.0,0.004]
[1625729815265,0.87430281,32835.0,32824.0,1.54314212]
[1625729815414,0.57639335,32834.0,32823.0,1.60786557]
[1625729815564,0.57592299,32832.0,32820.0,0.24057544]
[1625729815714,0.057,32831.0,32825.0,0.0035892]
[1625729815866,0.30389438,32831.0,32821.0,0.00358931]
[1625729816318,0.58234605,32830.0,32821.0,0.00358931]
[1625729816467,0.057,32829.0,32817.0,0.00358967]
[1625729816673,0.24655075,32826.0,32817.0,0.00358967]
[1625729816942,0.96230176,32818.0,32816.0,0.0035899]
[1625729816957,0.057,32817.0,32816.0,0.0035899]
[1625729817366,3.7991,32817.0,32816.0,0.0035899]
[1625729817671,3.7991,32817.0,32816.0,0.1035899]
[1625729818118,3.7991,32817.0,32816.0,0.1]
[1625729820745,4.2991,32817.0,32801.0,1.78138589]
[1625729821272,4.2991,32817.0,32790.0,0.9892]
[1625729821273,0.16097656,32809.0,32797.0,1.78166384]
[1625729821297,0.5,32808.0,32797.0,1.78166384]
[1625729821350,0.56899874,32806.0,32782.0,1.78219964]
[1625729821498,0.557,32805.0,32782.0,1.78219964]
[1625729821850,0.557,32805.0,32780.0,0.9846]
[1625729821851,0.08122949,32800.0,32780.0,0.9846]
[1625729821898,0.08122949,32800.0,32783.0,0.00359193]
[1625729821899,0.24330428,32797.0,32783.0,0.00359193]
[1625729821957,3.8073,32785.0,32783.0,0.00359193]
[1625729822111,3.8073,32785.0,32780.0,0.9846]
[1625729822112,4.1239,32785.0,32780.0,0.9846]
[1625729822396,4.1239,32785.0,32768.0,1.77525418]
[1625729822696,0.3166,32785.0,32763.0,2.23163122]
[1625729822846,0.3166,32785.0,32778.0,0.24057544]
[1625729822847,0.24057544,32779.0,32778.0,0.24057544]
[1625729822997,0.29757544,32779.0,32778.0,0.24057544]
[1625729823297,0.29757544,32779.0,32775.0,0.24057544]
[1625729823447,0.29757544,32779.0,32778.0,0.0035932]
[1625729823673,0.24057544,32779.0,32778.0,0.0035932]
[1625729823825,0.24057544,32779.0,32772.0,0.00359334]
[1625729823976,0.15255796,32775.0,32772.0,0.00359334]
[1625729824120,0.20955796,32775.0,32765.0,0.2929]
[1625729824273,0.20955796,32775.0,32763.0,0.10132621]
[1625729824422,0.20955796,32775.0,32773.0,0.00359361]
[1625729824760,0.15255796,32775.0,32755.0,2.13035634]
[1625729824972,0.15255796,32775.0,32774.0,0.48115088]
[1625729825624,0.48115088,32782.0,32774.0,0.48115088]
[1625729825773,0.48115088,32782.0,32778.0,3.9337]
[1625729826823,0.48115088,32782.0,32779.0,0.0914]
[1625729826972,0.48115088,32782.0,32778.0,4.17427544]
[1625729827124,0.48115088,32782.0,32778.0,4.20577544]
[1625729827573,0.001,32786.0,32778.0,4.20577544]
[1625729828100,0.001,32786.0,32785.0,0.1]
[1625729828262,0.001,32786.0,32785.0,0.36681]
[1625729828405,0.057,32803.0,32785.0,0.36681]
[1625729828570,0.08559894,32806.0,32785.0,0.36681]
[1625729828571,0.08559894,32806.0,32785.0,0.82087]
[1625729828701,0.005,32806.0,32785.0,0.82087]
[1625729828930,0.24057544,32801.0,32800.0,0.24057544]
[1625729829078,0.080757,32813.0,32800.0,0.54034544]
[1625729829377,1.28969408,32820.0,32800.0,0.54034544]
[1625729829378,0.09,32812.0,32801.0,0.459195]
[1625729829532,0.56616501,32824.0,32802.0,0.0908]
[1625729829685,0.08103854,32826.0,32800.0,0.54034544]
[1625729829826,0.0809406,32823.0,32800.0,0.57184544]
[1625729829978,0.56593796,32823.0,32800.0,0.57184544]
[1625729830145,0.08090069,32821.0,32800.0,0.57184544]